[Event "*** Titled Tuesday Blitz"]
[Site "Chess.com"]
[Date "2021.04.27"]
[Round "10"]
[White "c_r_e_e_p_e_r"]
[Black "monikarozman"]
[Result "0-1"]
[WhiteElo "2385"]
[BlackElo "2234"]
[TimeControl "180+1"]
[EndTime "11:53:41 PDT"]
[Termination "monikarozman won by resignation"]

1. d4 {[%clk 0:03:00.9]} 1... Nf6 {[%clk 0:02:58.8]} 2. c4 {[%clk 0:03:01.5]}
2... e6 {[%clk 0:02:57]} 3. Nc3 {[%clk 0:03:01.5]} 3... Bb4 {[%clk 0:02:56.2]}
4. e3 {[%clk 0:03:00.8]} 4... O-O {[%clk 0:02:50.1]} 5. a3 {[%clk 0:03:01.3]}
5... Bxc3+ {[%clk 0:02:49.3]} 6. bxc3 {[%clk 0:03:02.2]} 6... c5 {[%clk
0:02:47.6]} 7. Bd3 {[%clk 0:03:02.4]} 7... Nc6 {[%clk 0:02:47.7]} 8. e4 {[%clk
0:03:02.5]} 8... e5 {[%clk 0:02:44.8]} 9. Ne2 {[%clk 0:02:58.3]} 9... d6 {[%clk
0:02:41.9]} 10. d5 {[%clk 0:02:41.3]} 10... Na5 {[%clk 0:02:41]} 11. f3 {[%clk
0:02:41.7]} 11... b6 {[%clk 0:02:38.3]} 12. g4 {[%clk 0:02:42]} 12... Ba6 {[%clk
0:02:36.1]} 13. Ng3 {[%clk 0:02:31.6]} 13... Bxc4 {[%clk 0:02:27.6]} 14. Bxc4
{[%clk 0:02:17.7]} 14... Nxc4 {[%clk 0:02:28.5]} 15. Qe2 {[%clk 0:02:18.2]}
15... b5 {[%clk 0:02:20.5]} 16. h4 {[%clk 0:01:59.3]} 16... Rb8 {[%clk
0:02:14.9]} 17. Bg5 {[%clk 0:01:58.7]} 17... h6 {[%clk 0:01:57]} 18. Nf5 {[%clk
0:01:56.5]} 18... Nb6 {[%clk 0:01:24.9]} 19. Qd2 {[%clk 0:01:49.5]} 19... b4
{[%clk 0:01:12.9]} 20. axb4 {[%clk 0:00:46.1]} 20... cxb4 {[%clk 0:01:13.8]} 21.
Rxa7 {[%clk 0:00:46.3]} 21... bxc3 {[%clk 0:01:12.1]} 22. Qc1 {[%clk 0:00:40.7]}
22... Nbd7 {[%clk 0:00:53.5]} 23. Bxf6 {[%clk 0:00:15.8]} 23... Nxf6 {[%clk
0:00:44.3]} 24. g5 {[%clk 0:00:15.7]} 24... hxg5 {[%clk 0:00:28.8]} 25. Qxg5
{[%clk 0:00:09]} 25... Ne8 {[%clk 0:00:27.6]} 26. Ne7+ {[%clk 0:00:02.9]} 26...
Qxe7 {[%clk 0:00:20.4]} 27. Rxe7 {[%clk 0:00:01.2]} 27... Rb1+ {[%clk
0:00:20.7]} 28. Ke2 {[%clk 0:00:01.8]} 28... Rxh1 {[%clk 0:00:20.8]} 29. Rxe8
{[%clk 0:00:01.5]} 29... Rxe8 {[%clk 0:00:20.2]} 30. Qg2 {[%clk 0:00:02]} 30...
Ra1 {[%clk 0:00:17.9]} 31. Kd3 {[%clk 0:00:02.2]} 31... Rc8 {[%clk 0:00:16.8]}
32. Qc2 {[%clk 0:00:01.4]} 32... Ra4 {[%clk 0:00:15.4]} 33. Qxa4 {[%clk
0:00:01.1]} 33... c2 {[%clk 0:00:15.6]} 34. Qxc2 {[%clk 0:00:01.5]} 34... Rxc2
{[%clk 0:00:15.6]} 35. Kxc2 {[%clk 0:00:02.4]} 35... Kh7 {[%clk 0:00:16.2]} 36.
Kd3 {[%clk 0:00:02.9]} 36... Kh6 {[%clk 0:00:16.8]} 37. Ke3 {[%clk 0:00:03.2]}
37... Kh5 {[%clk 0:00:17.2]} 38. f4 {[%clk 0:00:03.9]} 38... f6 {[%clk
0:00:15.6]} 39. fxe5 {[%clk 0:00:03.3]} 39... fxe5 {[%clk 0:00:16.3]} 40. Kf3
{[%clk 0:00:03.7]} 40... Kxh4 {[%clk 0:00:16.8]} 0-1

[Event "*** Titled Tuesday Blitz"]
[Site "Chess.com"]
[Date "2021.04.27"]
[Round "10"]
[White "mary-sanna"]
[Black "AniJak"]
[Result "0-1"]
[WhiteElo "2139"]
[BlackElo "2296"]
[TimeControl "180+1"]
[EndTime "11:53:42 PDT"]
[Termination "AniJak won by checkmate"]

1. d4 {[%clk 0:03:00.9]} 1... d5 {[%clk 0:02:59.3]} 2. Bf4 {[%clk 0:03:00.2]}
2... Nf6 {[%clk 0:02:57.6]} 3. e3 {[%clk 0:02:59.6]} 3... e6 {[%clk 0:02:56.5]}
4. Nf3 {[%clk 0:02:56.5]} 4... Bd6 {[%clk 0:02:56.8]} 5. Bg3 {[%clk 0:02:55.1]}
5... O-O {[%clk 0:02:56.3]} 6. Nbd2 {[%clk 0:02:54.5]} 6... c5 {[%clk
0:02:55.2]} 7. c3 {[%clk 0:02:54.9]} 7... Nc6 {[%clk 0:02:54.4]} 8. Bd3 {[%clk
0:02:54.8]} 8... b6 {[%clk 0:02:48.6]} 9. Ne5 {[%clk 0:02:53.7]} 9... Bb7 {[%clk
0:02:41.5]} 10. Ndf3 {[%clk 0:02:47.2]} 10... Ne4 {[%clk 0:02:38.4]} 11. Nxc6
{[%clk 0:02:41.4]} 11... Bxc6 {[%clk 0:02:38]} 12. Bxd6 {[%clk 0:02:39.4]} 12...
Qxd6 {[%clk 0:02:37.7]} 13. Bxe4 {[%clk 0:02:38.8]} 13... dxe4 {[%clk
0:02:37.2]} 14. Ng5 {[%clk 0:02:37.5]} 14... h6 {[%clk 0:02:28.8]} 15. Nh3
{[%clk 0:02:37.4]} 15... cxd4 {[%clk 0:02:27]} 16. exd4 {[%clk 0:02:35.7]} 16...
e5 {[%clk 0:02:24.6]} 17. dxe5 {[%clk 0:02:26.6]} 17... Qxe5 {[%clk 0:02:24.4]}
18. O-O {[%clk 0:02:20.8]} 18... Rad8 {[%clk 0:02:24.2]} 19. Qe2 {[%clk
0:02:15.4]} 19... Rd6 {[%clk 0:01:59.6]} 20. Rad1 {[%clk 0:02:13.7]} 20... Rfd8
{[%clk 0:01:59]} 21. f4 {[%clk 0:01:42.3]} 21... Qc5+ {[%clk 0:01:53]} 22. Nf2
{[%clk 0:01:41.2]} 22... Bb5 {[%clk 0:01:52]} 23. Rxd6 {[%clk 0:01:27.4]} 23...
Rxd6 {[%clk 0:01:44.4]} 24. Qxe4 {[%clk 0:01:24.7]} 24... Bxf1 {[%clk
0:01:43.1]} 25. Qe8+ {[%clk 0:01:20.4]} 25... Kh7 {[%clk 0:01:42.2]} 26. Qe4+
{[%clk 0:01:15.6]} 26... f5 {[%clk 0:01:38.3]} 27. Qf3 {[%clk 0:01:01.3]} 27...
Bc4 {[%clk 0:01:33]} 28. h3 {[%clk 0:01:01]} 28... Bd5 {[%clk 0:01:23.1]} 29.
Qg3 {[%clk 0:00:51.8]} 29... Rg6 {[%clk 0:01:22.5]} 30. Qh4 {[%clk 0:00:44.2]}
30... Rxg2+ {[%clk 0:01:19.2]} 31. Kf1 {[%clk 0:00:44]} 31... Rxf2+ {[%clk
0:01:14]} 32. Qxf2 {[%clk 0:00:44.9]} 32... Qxf2+ {[%clk 0:01:13.7]} 33. Kxf2
{[%clk 0:00:45.8]} 33... Bxa2 {[%clk 0:01:13.5]} 34. Ke3 {[%clk 0:00:44.3]}
34... g5 {[%clk 0:01:11.7]} 35. fxg5 {[%clk 0:00:42.6]} 35... hxg5 {[%clk
0:01:11.8]} 36. Kd4 {[%clk 0:00:41.7]} 36... f4 {[%clk 0:01:10.3]} 37. c4 {[%clk
0:00:41.3]} 37... Kg6 {[%clk 0:01:04.5]} 38. b4 {[%clk 0:00:41.2]} 38... Kf5
{[%clk 0:01:04.2]} 39. c5 {[%clk 0:00:41.6]} 39... bxc5+ {[%clk 0:01:03.6]} 40.
bxc5 {[%clk 0:00:41.4]} 40... Be6 {[%clk 0:01:01.3]} 41. c6 {[%clk 0:00:39.3]}
41... a5 {[%clk 0:01:00.5]} 42. c7 {[%clk 0:00:35.2]} 42... a4 {[%clk
0:01:00.2]} 43. Kc5 {[%clk 0:00:35.4]} 43... a3 {[%clk 0:00:58.3]} 44. Kd6
{[%clk 0:00:35.6]} 44... a2 {[%clk 0:00:57.7]} 45. h4 {[%clk 0:00:32.9]} 45...
a1=Q {[%clk 0:00:57]} 46. hxg5 {[%clk 0:00:31.2]} 46... Qe5+ {[%clk 0:00:56.2]}
47. Kc6 {[%clk 0:00:29]} 47... Qd5+ {[%clk 0:00:54.7]} 48. Kb6 {[%clk
0:00:29.1]} 48... Qd6+ {[%clk 0:00:49.8]} 49. Kb7 {[%clk 0:00:28.2]} 49... Qd7
{[%clk 0:00:48.5]} 50. g6 {[%clk 0:00:24.9]} 50... Kxg6 {[%clk 0:00:48.1]} 51.
Kb6 {[%clk 0:00:23.3]} 51... Bd5 {[%clk 0:00:47.1]} 52. c8=Q {[%clk 0:00:11.6]}
52... Qxc8 {[%clk 0:00:45.6]} 53. Ka7 {[%clk 0:00:11.5]} 53... Qb7# {[%clk
0:00:44.9]} 0-1

[Event "*** Titled Tuesday Blitz"]
[Site "Chess.com"]
[Date "2021.04.27"]
[Round "10"]
[White "MarcoRiehle"]
[Black "riospm"]
[Result "1-0"]
[WhiteElo "2707"]
[BlackElo "2534"]
[TimeControl "180+1"]
[EndTime "11:53:43 PDT"]
[Termination "MarcoRiehle won by resignation"]

1. e4 {[%clk 0:03:00.9]} 1... c5 {[%clk 0:02:59.7]} 2. a3 {[%clk 0:02:59.9]}
2... Nc6 {[%clk 0:02:54.8]} 3. b4 {[%clk 0:02:59.8]} 3... cxb4 {[%clk
0:02:50.7]} 4. axb4 {[%clk 0:03:00.7]} 4... Nxb4 {[%clk 0:02:50.6]} 5. d4 {[%clk
0:02:58.6]} 5... d5 {[%clk 0:02:46.6]} 6. c3 {[%clk 0:02:56.5]} 6... Nc6 {[%clk
0:02:45.6]} 7. exd5 {[%clk 0:02:56.9]} 7... Qxd5 {[%clk 0:02:45.2]} 8. Na3
{[%clk 0:02:57.4]} 8... Qd8 {[%clk 0:02:23.7]} 9. d5 {[%clk 0:02:55.8]} 9... Na5
{[%clk 0:02:12.9]} 10. Bf4 {[%clk 0:02:48.3]} 10... a6 {[%clk 0:02:02.6]} 11.
Nf3 {[%clk 0:02:45.9]} 11... Nf6 {[%clk 0:02:00.8]} 12. Nc4 {[%clk 0:02:26.9]}
12... Nxc4 {[%clk 0:01:52]} 13. Bxc4 {[%clk 0:02:27.8]} 13... e6 {[%clk
0:01:44.2]} 14. O-O {[%clk 0:02:18.8]} 14... exd5 {[%clk 0:01:39.3]} 15. Re1+
{[%clk 0:02:18.5]} 15... Be7 {[%clk 0:01:39.5]} 16. Bb5+ {[%clk 0:02:18.5]}
16... Bd7 {[%clk 0:01:36.7]} 17. Bd6 {[%clk 0:02:15.9]} 17... Bxb5 {[%clk
0:01:35.6]} 18. Bxe7 {[%clk 0:02:15.9]} 18... Qxe7 {[%clk 0:01:35]} 19. Rxe7+
{[%clk 0:02:16.8]} 19... Kxe7 {[%clk 0:01:35.1]} 20. Qe1+ {[%clk 0:02:12.9]}
20... Kf8 {[%clk 0:01:34.1]} 21. Nd4 {[%clk 0:02:10.1]} 21... Bd7 {[%clk
0:01:32.2]} 22. Qe5 {[%clk 0:02:08.2]} 22... h6 {[%clk 0:01:27.4]} 23. h3 {[%clk
0:01:56.5]} 23... Kg8 {[%clk 0:01:26.6]} 24. Qc7 {[%clk 0:01:52.5]} 24... Bc8
{[%clk 0:01:19.8]} 25. Re1 {[%clk 0:01:47.7]} 25... Kh7 {[%clk 0:01:10]} 26.
Qxf7 {[%clk 0:01:46]} 26... Rg8 {[%clk 0:01:09.8]} 27. Re7 {[%clk 0:01:43.6]}
27... Kh8 {[%clk 0:01:08.6]} 28. Nf3 {[%clk 0:01:37.3]} 28... Bf5 {[%clk
0:00:55.6]} 29. Ne5 {[%clk 0:01:21.6]} 29... b5 {[%clk 0:00:48.5]} 30. Rb7
{[%clk 0:01:08.6]} 30... a5 {[%clk 0:00:43]} 31. g4 {[%clk 0:01:07.7]} 31... Bc2
{[%clk 0:00:40.5]} 32. g5 {[%clk 0:01:06.2]} 32... hxg5 {[%clk 0:00:39.3]} 33.
h4 {[%clk 0:01:02.9]} 33... gxh4 {[%clk 0:00:38.7]} 34. Rxb5 {[%clk 0:00:56.6]}
34... a4 {[%clk 0:00:37.9]} 35. Rb2 {[%clk 0:00:49.8]} 35... Bh7 {[%clk
0:00:34.1]} 36. Qxd5 {[%clk 0:00:43.1]} 36... Be4 {[%clk 0:00:21.4]} 37. Qd4
{[%clk 0:00:34.2]} 37... a3 {[%clk 0:00:19.8]} 38. Ra2 {[%clk 0:00:34.3]} 38...
Rgf8 {[%clk 0:00:17.8]} 39. f3 {[%clk 0:00:32]} 39... Bb1 {[%clk 0:00:17.6]} 40.
Qxh4+ {[%clk 0:00:31.6]} 40... Kg8 {[%clk 0:00:17.1]} 41. Qc4+ {[%clk 0:00:32]}
41... Kh8 {[%clk 0:00:17.4]} 42. Rh2+ {[%clk 0:00:32.4]} 42... Nh7 {[%clk
0:00:10.5]} 43. Qd5 {[%clk 0:00:26.6]} 43... a2 {[%clk 0:00:10.2]} 44. Nf7+
{[%clk 0:00:26.7]} 44... Rxf7 {[%clk 0:00:09.4]} 45. Qxa8+ {[%clk 0:00:26.7]}
1-0

[Event "*** Titled Tuesday Blitz"]
[Site "Chess.com"]
[Date "2021.04.27"]
[Round "10"]
[White "Raud100"]
[Black "rachidhuilda"]
[Result "1-0"]
[WhiteElo "2460"]
[BlackElo "2284"]
[TimeControl "180+1"]
[EndTime "11:53:43 PDT"]
[Termination "Raud100 won on time"]

1. d4 {[%clk 0:03:00.9]} 1... Nf6 {[%clk 0:02:44.1]} 2. c4 {[%clk 0:03:00.5]}
2... c5 {[%clk 0:02:44.2]} 3. d5 {[%clk 0:03:00.3]} 3... b5 {[%clk 0:02:44.3]}
4. f3 {[%clk 0:03:00.7]} 4... e6 {[%clk 0:02:39.1]} 5. e4 {[%clk 0:03:01.6]}
5... bxc4 {[%clk 0:02:38]} 6. Nc3 {[%clk 0:03:00.5]} 6... Bb7 {[%clk 0:02:16.7]}
7. Bxc4 {[%clk 0:02:58.9]} 7... exd5 {[%clk 0:02:17]} 8. Nxd5 {[%clk 0:02:57.6]}
8... Nxd5 {[%clk 0:02:16.1]} 9. Bxd5 {[%clk 0:02:58.5]} 9... Bxd5 {[%clk
0:02:15.6]} 10. Qxd5 {[%clk 0:02:59.4]} 10... Nc6 {[%clk 0:02:14.4]} 11. Ne2
{[%clk 0:02:56.5]} 11... Be7 {[%clk 0:02:13.4]} 12. O-O {[%clk 0:02:55.6]} 12...
O-O {[%clk 0:02:07.5]} 13. Rd1 {[%clk 0:02:55.5]} 13... Nb4 {[%clk 0:01:38.3]}
14. Qxd7 {[%clk 0:02:06.4]} 14... Nc2 {[%clk 0:01:18]} 15. Rb1 {[%clk
0:02:00.9]} 15... Nd4 {[%clk 0:01:18.1]} 16. Qxd8 {[%clk 0:01:52.9]} 16... Rfxd8
{[%clk 0:01:01.8]} 17. Nxd4 {[%clk 0:01:50.4]} 17... cxd4 {[%clk 0:01:00.4]} 18.
Bd2 {[%clk 0:01:45.4]} 18... Rab8 {[%clk 0:00:57.9]} 19. b3 {[%clk 0:01:44.1]}
19... Ba3 {[%clk 0:00:48.5]} 20. Bc1 {[%clk 0:01:40]} 20... Bb4 {[%clk
0:00:46.7]} 21. Rd3 {[%clk 0:01:35.1]} 21... Rbc8 {[%clk 0:00:36.5]} 22. Bb2
{[%clk 0:01:33.6]} 22... Rc2 {[%clk 0:00:32.5]} 23. Kf1 {[%clk 0:01:26.7]} 23...
h5 {[%clk 0:00:28.8]} 24. a3 {[%clk 0:01:24.6]} 24... Bc5 {[%clk 0:00:16.9]} 25.
b4 {[%clk 0:01:24.1]} 25... Bb6 {[%clk 0:00:16.8]} 26. a4 {[%clk 0:01:22.5]}
26... Rdc8 {[%clk 0:00:14.7]} 27. a5 {[%clk 0:01:18.1]} 27... Bd8 {[%clk
0:00:13.6]} 28. Bxd4 {[%clk 0:01:15.6]} 28... Bg5 {[%clk 0:00:13.3]} 29. Bxa7
{[%clk 0:01:10.3]} 29... Ra2 {[%clk 0:00:12.4]} 30. Bc5 {[%clk 0:01:02.6]} 30...
h4 {[%clk 0:00:08.4]} 31. h3 {[%clk 0:00:59.7]} 31... Bf4 {[%clk 0:00:08.4]} 32.
Rbd1 {[%clk 0:00:58.8]} 32... Kh7 {[%clk 0:00:07.3]} 33. Re1 {[%clk 0:00:43.2]}
33... Bg3 {[%clk 0:00:06.6]} 34. Rb1 {[%clk 0:00:40.9]} 34... Rf2+ {[%clk
0:00:06]} 35. Kg1 {[%clk 0:00:40]} 35... Rc2 {[%clk 0:00:06.4]} 36. a6 {[%clk
0:00:36.2]} 36... Ra8 {[%clk 0:00:02.5]} 37. a7 {[%clk 0:00:35.2]} 37... Rxc5
{[%clk 0:00:01.2]} 38. bxc5 {[%clk 0:00:33.5]} 38... Rxa7 {[%clk 0:00:02.1]} 39.
Rc3 {[%clk 0:00:29.8]} 39... Ra2 {[%clk 0:00:01.8]} 40. c6 {[%clk 0:00:27.7]}
40... Be5 {[%clk 0:00:01.8]} 41. c7 {[%clk 0:00:21.1]} 1-0

[Event "*** Titled Tuesday Blitz"]
[Site "Chess.com"]
[Date "2021.04.27"]
[Round "10"]
[White "kidagent"]
[Black "microbear"]
[Result "0-1"]
[WhiteElo "2321"]
[BlackElo "2204"]
[TimeControl "180+1"]
[EndTime "11:53:47 PDT"]
[Termination "microbear won by resignation"]

1. e4 {[%clk 0:03:00.9]} 1... c5 {[%clk 0:02:59.5]} 2. Nf3 {[%clk 0:03:01]} 2...
d6 {[%clk 0:02:59.8]} 3. d4 {[%clk 0:03:01.7]} 3... Nf6 {[%clk 0:03:00]} 4. Nc3
{[%clk 0:03:01.3]} 4... cxd4 {[%clk 0:03:00.3]} 5. Nxd4 {[%clk 0:03:02.2]} 5...
Nc6 {[%clk 0:03:00.8]} 6. Be2 {[%clk 0:02:59.1]} 6... e5 {[%clk 0:03:00.8]} 7.
Ndb5 {[%clk 0:02:54.3]} 7... a6 {[%clk 0:03:00.2]} 8. Na3 {[%clk 0:02:54.2]}
8... b5 {[%clk 0:03:00.6]} 9. Nd5 {[%clk 0:02:50.5]} 9... Nxe4 {[%clk
0:02:54.2]} 10. Bf3 {[%clk 0:02:50.4]} 10... f5 {[%clk 0:02:26]} 11. O-O {[%clk
0:02:49.8]} 11... Nd4 {[%clk 0:02:13.8]} 12. Bh5+ {[%clk 0:02:23.3]} 12... g6
{[%clk 0:02:11.9]} 13. c3 {[%clk 0:02:24.2]} 13... Ne6 {[%clk 0:02:03.5]} 14.
Bf3 {[%clk 0:02:17.3]} 14... Rb8 {[%clk 0:01:39.1]} 15. Be3 {[%clk 0:02:14.7]}
15... Bg7 {[%clk 0:01:29.8]} 16. Nc2 {[%clk 0:01:57.9]} 16... O-O {[%clk
0:01:13.9]} 17. Re1 {[%clk 0:01:51.1]} 17... Bb7 {[%clk 0:01:05.1]} 18. Bb6
{[%clk 0:01:47.9]} 18... Qd7 {[%clk 0:00:59.1]} 19. Nce3 {[%clk 0:01:44.8]}
19... N4g5 {[%clk 0:00:51.8]} 20. Be2 {[%clk 0:01:25.9]} 20... f4 {[%clk
0:00:47.1]} 21. Nc2 {[%clk 0:01:21.1]} 21... Bxd5 {[%clk 0:00:44.5]} 22. Qxd5
{[%clk 0:01:19.4]} 22... Rxb6 {[%clk 0:00:44.7]} 23. h4 {[%clk 0:01:13.8]} 23...
Nf7 {[%clk 0:00:44.1]} 24. Bg4 {[%clk 0:01:13.5]} 24... Re8 {[%clk 0:00:42.7]}
25. Rad1 {[%clk 0:01:00.5]} 25... Qe7 {[%clk 0:00:41.8]} 26. h5 {[%clk
0:00:53.5]} 26... Nc7 {[%clk 0:00:35.5]} 27. Qb3 {[%clk 0:00:49.1]} 27... g5
{[%clk 0:00:35.7]} 28. a4 {[%clk 0:00:46]} 28... h6 {[%clk 0:00:34.1]} 29. a5
{[%clk 0:00:41.8]} 29... Rbb8 {[%clk 0:00:33.3]} 30. Nb4 {[%clk 0:00:40.2]}
30... Kh8 {[%clk 0:00:24.8]} 31. Nc6 {[%clk 0:00:39.1]} 31... Qf8 {[%clk
0:00:25]} 32. Nxb8 {[%clk 0:00:34.8]} 32... Rxb8 {[%clk 0:00:25.9]} 33. Qc2
{[%clk 0:00:27.6]} 33... d5 {[%clk 0:00:22.6]} 34. Qg6 {[%clk 0:00:23.8]} 34...
Rd8 {[%clk 0:00:18.6]} 35. Bf5 {[%clk 0:00:22.7]} 35... Qg8 {[%clk 0:00:17.3]}
36. Bb1 {[%clk 0:00:16.9]} 36... Nd6 {[%clk 0:00:16.2]} 37. b3 {[%clk
0:00:14.2]} 37... e4 {[%clk 0:00:13]} 38. g3 {[%clk 0:00:13.9]} 38... Qe6 {[%clk
0:00:12.7]} 39. Qxe6 {[%clk 0:00:13.2]} 39... Nxe6 {[%clk 0:00:13.6]} 40. gxf4
{[%clk 0:00:13.8]} 40... Nxf4 {[%clk 0:00:14]} 41. c4 {[%clk 0:00:13.4]} 41...
bxc4 {[%clk 0:00:13.9]} 42. bxc4 {[%clk 0:00:13.4]} 42... Nxc4 {[%clk
0:00:14.8]} 43. Ba2 {[%clk 0:00:13.5]} 43... Ne5 {[%clk 0:00:14.5]} 44. Kh2
{[%clk 0:00:12.9]} 44... Nf3+ {[%clk 0:00:14.8]} 45. Kh1 {[%clk 0:00:13]} 45...
Nxe1 {[%clk 0:00:15.5]} 46. Rxe1 {[%clk 0:00:13.9]} 46... d4 {[%clk 0:00:15.6]}
0-1

[Event "*** Titled Tuesday Blitz"]
[Site "Chess.com"]
[Date "2021.04.27"]
[Round "10"]
[White "alexrustemov"]
[Black "nrvignesh"]
[Result "1-0"]
[WhiteElo "2638"]
[BlackElo "2775"]
[TimeControl "180+1"]
[EndTime "11:53:48 PDT"]
[Termination "alexrustemov won by resignation"]

1. d4 {[%clk 0:03:00.9]} 1... d5 {[%clk 0:02:57.4]} 2. c4 {[%clk 0:03:00.9]}
2... c6 {[%clk 0:02:57.4]} 3. Nc3 {[%clk 0:03:00.4]} 3... Nf6 {[%clk 0:02:56.6]}
4. e3 {[%clk 0:03:00.5]} 4... e6 {[%clk 0:02:56.7]} 5. Nf3 {[%clk 0:03:00.5]}
5... Nbd7 {[%clk 0:02:56.7]} 6. Qc2 {[%clk 0:03:00.7]} 6... Bd6 {[%clk 0:02:55]}
7. b3 {[%clk 0:03:01]} 7... O-O {[%clk 0:02:54.1]} 8. Be2 {[%clk 0:03:00.4]}
8... e5 {[%clk 0:02:51.7]} 9. cxd5 {[%clk 0:02:59.9]} 9... cxd5 {[%clk
0:02:51.5]} 10. Nb5 {[%clk 0:03:00.1]} 10... Bb4+ {[%clk 0:02:49.4]} 11. Bd2
{[%clk 0:03:00.4]} 11... Bxd2+ {[%clk 0:02:48.9]} 12. Nxd2 {[%clk 0:03:01]}
12... a6 {[%clk 0:02:42.8]} 13. dxe5 {[%clk 0:03:01.2]} 13... Nxe5 {[%clk
0:02:40.4]} 14. Nd4 {[%clk 0:03:01.7]} 14... Bd7 {[%clk 0:02:38.2]} 15. O-O
{[%clk 0:02:58.5]} 15... Rc8 {[%clk 0:02:38]} 16. Qb2 {[%clk 0:02:57.7]} 16...
Qe7 {[%clk 0:02:34.2]} 17. Rfc1 {[%clk 0:02:53.5]} 17... h5 {[%clk 0:02:31.8]}
18. Rxc8 {[%clk 0:02:45.4]} 18... Rxc8 {[%clk 0:02:30.8]} 19. Rc1 {[%clk
0:02:45.9]} 19... h4 {[%clk 0:02:28.3]} 20. Rxc8+ {[%clk 0:02:40.3]} 20... Bxc8
{[%clk 0:02:27.5]} 21. Qc3 {[%clk 0:02:39.7]} 21... Qd8 {[%clk 0:02:23.1]} 22.
h3 {[%clk 0:02:26]} 22... Ne4 {[%clk 0:02:20.5]} 23. Qc2 {[%clk 0:02:15.8]}
23... Nxd2 {[%clk 0:02:08]} 24. Qxd2 {[%clk 0:02:16.7]} 24... Qd6 {[%clk
0:02:07.5]} 25. Qc3 {[%clk 0:02:10.3]} 25... Bd7 {[%clk 0:02:01.7]} 26. b4
{[%clk 0:02:07.3]} 26... Nc4 {[%clk 0:01:54.4]} 27. Nf3 {[%clk 0:01:41]} 27...
Be6 {[%clk 0:01:21.4]} 28. Nxh4 {[%clk 0:01:37.8]} 28... Ne5 {[%clk 0:01:20.2]}
29. Nf3 {[%clk 0:01:35.7]} 29... Nc6 {[%clk 0:01:15]} 30. Nd4 {[%clk 0:01:34.6]}
30... Qxb4 {[%clk 0:01:10.8]} 31. Qxb4 {[%clk 0:01:31.1]} 31... Nxb4 {[%clk
0:01:11.7]} 32. a3 {[%clk 0:01:31.7]} 32... Na2 {[%clk 0:01:09.7]} 33. Kf1
{[%clk 0:01:23.5]} 33... Nc3 {[%clk 0:01:09.2]} 34. Bd3 {[%clk 0:01:23.2]} 34...
Kf8 {[%clk 0:01:06.2]} 35. Ke1 {[%clk 0:01:22.8]} 35... Ke7 {[%clk 0:01:05.9]}
36. Kd2 {[%clk 0:01:22.7]} 36... Na4 {[%clk 0:01:04.8]} 37. h4 {[%clk
0:01:20.6]} 37... Nc5 {[%clk 0:01:02.6]} 38. Bc2 {[%clk 0:01:15.9]} 38... Kd6
{[%clk 0:00:55.3]} 39. f3 {[%clk 0:01:14.6]} 39... Bd7 {[%clk 0:00:51.9]} 40. h5
{[%clk 0:01:12.3]} 40... Ne6 {[%clk 0:00:46]} 41. Nf5+ {[%clk 0:01:12.2]} 41...
Ke5 {[%clk 0:00:45.6]} 42. Nxg7 {[%clk 0:01:11.7]} 42... Kf6 {[%clk 0:00:22.8]}
43. Nxe6 {[%clk 0:01:08.2]} 43... fxe6 {[%clk 0:00:21.6]} 44. f4 {[%clk
0:01:00.2]} 44... e5 {[%clk 0:00:18.8]} 45. fxe5+ {[%clk 0:00:57.5]} 45... Kxe5
{[%clk 0:00:19.7]} 46. h6 {[%clk 0:00:57.8]} 46... Kf6 {[%clk 0:00:20.1]} 47.
Kc3 {[%clk 0:00:57.8]} 47... b5 {[%clk 0:00:19.1]} 48. Kd4 {[%clk 0:00:56.4]}
48... a5 {[%clk 0:00:19.5]} 49. Kxd5 {[%clk 0:00:55]} 49... b4 {[%clk
0:00:19.8]} 50. axb4 {[%clk 0:00:55.4]} 50... axb4 {[%clk 0:00:20.7]} 51. Kc4
{[%clk 0:00:55.7]} 51... Bc6 {[%clk 0:00:15.2]} 52. g3 {[%clk 0:00:46.4]} 52...
b3 {[%clk 0:00:12.9]} 53. Kxb3 {[%clk 0:00:45.7]} 53... Bf3 {[%clk 0:00:12.8]}
1-0

[Event "*** Titled Tuesday Blitz"]
[Site "Chess.com"]
[Date "2021.04.27"]
[Round "10"]
[White "I_am_a_Miracle"]
[Black "MIJuanReyesRosa"]
[Result "0-1"]
[WhiteElo "2366"]
[BlackElo "2083"]
[TimeControl "180+1"]
[EndTime "11:53:52 PDT"]
[Termination "MIJuanReyesRosa won on time"]

1. d4 {[%clk 0:03:00.9]} 1... e6 {[%clk 0:02:57]} 2. Nf3 {[%clk 0:03:00.8]} 2...
c5 {[%clk 0:02:55.8]} 3. Nc3 {[%clk 0:02:58]} 3... cxd4 {[%clk 0:02:47.1]} 4.
Nxd4 {[%clk 0:02:57.8]} 4... a6 {[%clk 0:02:47]} 5. g3 {[%clk 0:02:56.4]} 5...
Nf6 {[%clk 0:02:22.8]} 6. Bg2 {[%clk 0:02:55.8]} 6... Nc6 {[%clk 0:02:19]} 7.
O-O {[%clk 0:02:53.1]} 7... Qc7 {[%clk 0:02:16.9]} 8. e4 {[%clk 0:02:41.9]} 8...
Be7 {[%clk 0:02:14.2]} 9. h3 {[%clk 0:02:34.4]} 9... d6 {[%clk 0:02:02.5]} 10.
Be3 {[%clk 0:02:33.8]} 10... O-O {[%clk 0:01:43.3]} 11. Qe2 {[%clk 0:02:31.3]}
11... Bd7 {[%clk 0:01:38.1]} 12. f4 {[%clk 0:02:20.4]} 12... Nxd4 {[%clk
0:01:33.3]} 13. Bxd4 {[%clk 0:02:19.9]} 13... e5 {[%clk 0:01:27.8]} 14. Be3
{[%clk 0:02:02.7]} 14... b5 {[%clk 0:01:10.9]} 15. fxe5 {[%clk 0:01:37.4]} 15...
dxe5 {[%clk 0:01:08.8]} 16. Rad1 {[%clk 0:01:32]} 16... b4 {[%clk 0:01:05.1]}
17. Nd5 {[%clk 0:01:31.5]} 17... Nxd5 {[%clk 0:01:00.4]} 18. exd5 {[%clk
0:01:27.3]} 18... Bb5 {[%clk 0:00:59.4]} 19. d6 {[%clk 0:00:39.2]} 19... Bxd6
{[%clk 0:00:52.8]} 20. Qg4 {[%clk 0:00:36.2]} 20... Bxf1 {[%clk 0:00:49.5]} 21.
Bxa8 {[%clk 0:00:28.3]} 21... Bxh3 {[%clk 0:00:43]} 22. Qe4 {[%clk 0:00:16.6]}
22... Bc5 {[%clk 0:00:38.1]} 23. Bd5 {[%clk 0:00:11.6]} 23... Bxe3+ {[%clk
0:00:33.9]} 24. Qxe3 {[%clk 0:00:12.5]} 24... Qxc2 {[%clk 0:00:31.2]} 25. Rd2
{[%clk 0:00:12.8]} 25... Qc1+ {[%clk 0:00:27.8]} 26. Kh2 {[%clk 0:00:13.2]}
26... Be6 {[%clk 0:00:23.3]} 27. Be4 {[%clk 0:00:12.7]} 27... Bxa2 {[%clk
0:00:20.7]} 28. b3 {[%clk 0:00:06.1]} 28... Bxb3 {[%clk 0:00:15.6]} 29. Qd3
{[%clk 0:00:06.3]} 29... g6 {[%clk 0:00:11.1]} 30. Rd1 {[%clk 0:00:05.1]} 30...
Qc4 {[%clk 0:00:09.3]} 31. Qf3 {[%clk 0:00:03.6]} 31... Qe6 {[%clk 0:00:08.3]}
32. Rb1 {[%clk 0:00:01.5]} 32... Rd8 {[%clk 0:00:06.7]} 0-1